Cogmind - Beta 16.1 @@@ ROGUE MODE // 2026.03.23 @ 00:39:53 Player: Strawberry Result: Destroyed by Y-45 Defender with Beam Rifle Performance ------------- Evolutions (1) 500 Regions Visited (2) 400 Robots Destroyed (11) 55 Value Destroyed (308) 308 Prototype IDs (0) 0 Alien Tech Used (0) 0 Bonus (0) 0 TOTAL SCORE: 1263 Bonus ------- None Cogmind --------- Core Integrity 0/400 Matter 300/300 Energy 100/100 System Corruption 0% Temperature Cool (9) Movement Core (1350) Ox26 Location -9/Materials Parts ------- > --- POWER (1) -------- (None) > --- PROPULSION (4) --- (None) > --- UTILITY (2) ------ Huge Storage Unit > --- WEAPON (2) ------- (None) > --- INVENTORY (25) --- Wheel Huge Storage Unit Peak State ------------ > --- POWER ------------ Light Ion Engine > --- PROPULSION ------- Light Treads Aluminum Leg Aluminum Leg Aluminum Leg > --- UTILITY ---------- Small Storage Unit Huge Storage Unit > --- WEAPON ----------- Assault Rifle Assault Rifle > --- INVENTORY -------- Light Treads Wheel Compact Wheel Huge Storage Unit Small Laser [Rating: 9] Favorites ----------- Power Light Ion Engine Engine Light Ion Engine Propulsion Aluminum Leg Treads Light Treads Leg Aluminum Leg Wheel Compact Wheel Utility Small Storage Unit Storage Small Storage Unit Weapon Assault Rifle Energy Gun Small Laser Ballistic Gun Assault Rifle Build | -11 -10 -9 ------- Run | Yrd Mat Mat Slots Evolved 2 | . . 2 Power . | . . . Propulsion 2 | . . 2 Utility . | . . . Weapon . | . . . Parts Attached 15 | 6 3 6 Power 2 | 1 1 . Engine 2 | 1 1 . Core . | . . . Reactor . | . . . Propulsion 6 | 2 1 3 Treads 2 | . . 2 Leg 3 | 2 1 . Wheel 1 | . . 1 Hover . | . . . Flight . | . . . Utility 3 | 1 1 1 Device . | . . . Storage 3 | 1 1 1 Processor . | . . . Hackware . | . . . Protection . | . . . Artifact . | . . . Weapon 4 | 2 . 2 Energy Gun 2 | . . 2 Energy Cannon . | . . . Ballistic Gun 2 | 2 . . Ballistic Cannon . | . . . Launcher . | . . . Special Weapon . | . . . Impact Weapon . | . . . Slashing Weapon . | . . . Piercing Weapon . | . . . Special Melee Weapon . | . . . Unidentified Prototypes . | . . . Parts Lost 13 | . 1 12 Power 2 | . 1 1 Propulsion 6 | . . 6 Utility 1 | . . 1 Weapon 4 | . . 4 Highest Loss Streak 11 | . 1 11 To Critical Strikes . | . . . Average Backups 5 | 2 6 4 Power . | . . . Propulsion 3 | 1 4 2 Utility . | . . 1 Weapon . | . 1 . Tool/Special . | . . . Unused Backups 1 | . . 1 Power . | . . . Propulsion 1 | . . 1 Utility . | . . . Weapon . | . . . Tool/Special . | . . . Average Slot Usage (%) 90 | . 87 92 Engine 10 | . 12 9 Treads 6 | . . 9 Leg 28 | . 26 29 Storage 20 | . 19 21 Energy Gun 2 | . . 3 Ballistic Gun 21 | . 27 17 Peak Build Rating 9 | 6 7 9 Average Rating 7 | 5 6 8 On Entrance 4 | . 6 7 Avg Prop Armor Cover (%) 8 | . . 8 Naked Turns . | . . . Heaviest Build 92 | 12 92 92 Greatest Support 30 | 20 20 30 Greatest Overweight (x) 27 | 1 4 27 Average Overweight (x) 1 | . . 3 Largest Inventory Capacity 25 | 8 25 25 Average Capacity 19 | 7 14 25 Most Carried 7 | 6 7 6 Average Carried 5 | 3 6 4 Final Capacity 25 | 8 25 25 Final Carried 7 | 6 7 2 Class Distribution -------------------- 100% | Mutant Dominant Class ---------------- Mutant | -10/Materials Mutant | -9/Materials Resources | -11 -10 -9 ----------- Run | Yrd Mat Mat Matter Collected 495 | 228 132 135 Remotely . | . . . Salvage Created 383 | . 149 234 Parts 24 | . 11 13 Haulers Intercepted . | . . . Recyclers Shooed . | . . . Parts Field Recycled . | . . . Retrieved Matter . | . . . Parts Self-Destructed . | . . . Prevented . | . . . Parts Restored . | . . . Kills | -11 -10 -9 ------- Run | Yrd Mat Mat Combat Hostiles Destroyed 10 | . 5 5 Guns 10 | . 5 5 Classes Destroyed 4 | . 3 1 Builder 1 | . 1 . Swarmer 3 | . 3 . Grunt 5 | . 2 3 Sentry 2 | . . 2 Best Kill Streak 4 | . 4 2 Combat Bots Only 4 | . 4 2 Max Kills in Single Turn 1 | . 1 1 Gunslinging . | . . . Exploded . | . . . Melee . | . . . Uniques/NPCs Destroyed . | . . . Combat | -11 -10 -9 -------- Run | Yrd Mat Mat Hostile Shots Fired 177 | . 41 136 Missed 46 | . 11 35 Hits 131 | . 30 101 Projectile 131 | . 30 101 Critical Strikes 1 | . . 1 Damage Taken 1666 | . 256 1410 Core 448 | . 47 401 Absorbed by Shields . | . . . Core Remaining (%) 90 | 100 81 . Volleys Fired 37 | . 14 23 Largest 2 | . 2 2 Hottest 80 | . 40 80 Shots Fired 65 | . 28 37 Gun 65 | . 28 37 Cannon . | . . . Launcher . | . . . Special . | . . . Kinetic 45 | . 28 17 Thermal 20 | . . 20 Explosive . | . . . Electromagnetic . | . . . Robot Hit Streak 8 | . 5 8 Robot Miss Streak 3 | . 3 2 Penetration Max . | . . . Secondary Targets 2 | . 2 . Max Gunslinging Chain 1 | . 1 . Shots Hit Robots 43 | . 16 27 Core Hits 19 | . 8 11 Critical Kills . | . . . Critical Parts Destroyed 1 | . . 1 Critical Strikes 1 | . . 1 Destroy 1 | . . 1 Melee Attacks . | . . . Impact . | . . . Slashing . | . . . Piercing . | . . . Sneak Attacks . | . . . Combat Hostiles . | . . . Follow-up Attacks . | . . . Damage Inflicted 494 | . 198 296 Guns 494 | . 198 296 Cannons . | . . . Explosions . | . . . Melee . | . . . Ramming . | . . . Kinetic 285 | . 198 87 Thermal 209 | . . 209 Explosive . | . . . Electromagnetic . | . . . Impact . | . . . Slashing . | . . . Piercing . | . . . Highest Corruption . | . . . Average Corruption . | . . . Corruption Purged . | . . . Corruption Blocked . | . . . Overload Shots . | . . . Overflow Damage . | . . . Projectiles . | . . . Explosions . | . . . Melee . | . . . Knockbacks . | . . . Impact . | . . . Kinetic . | . . . Secondary . | . . . Self-Inflicted Damage . | . . . Shots . | . . . Rammed . | . . . Targets Rammed . | . . . Kicked . | . . . Crushed . | . . . Highest Temperature 108 | . . 108 Average Temperature 28 | . . 28 Received Heat Transfer 582 | . 24 558 Siege Activations . | . . . Martial Activations . | . . . Shielding Activations . | . . . Robots Disrupted . | . . . Combat Hostiles . | . . . Robots Corrupted . | . . . Combat Hostiles . | . . . Parts Fried . | . . . Impact Corruptions . | . . . Robots Melted . | . . . Combat Hostiles . | . . . Parts Melted 4 | . . 4 Heat Transferred 475 | . . 475 Parts Sabotaged . | . . . Parts Stolen . | . . . Parts Stripped . | . . . Power Chain Reactions . | . . . Alert | -11 -10 -9 ------- Run | Yrd Mat Mat Maximum Alert Level . | . . . Low Security (%) 100 | 100 100 100 Level 1 . | . . . Level 2 . | . . . Level 3 . | . . . Level 4 . | . . . Level 5 . | . . . High Security . | . . . Max Security . | . . . Peak Influence 80 | . 80 55 Initial 10 | . . 10 Average 16 | . 34 7 Influence Increases 285 | . 125 160 Destroy 0b10 Robot/C 200 | . 100 100 Destroy 0b10 Robot/NC 5 | . 5 . Destroy Leader 60 | . 20 40 Successful Hack 5 | . . 5 Lose Combat Pursuer 15 | . . 15 Influence Decreases 285 | . 100 185 Entered New Map 15 | . . 15 Time Decay 160 | . 90 70 Lost Part 110 | . 10 100 Squads Dispatched 2 | . 1 1 Investigation . | . . . Extermination . | . . . Reinforcement 2 | . 1 1 Assault . | . . . Garrison . | . . . Intercept . | . . . Searches Triggered . | . . . Construction Impeded . | . . . Haulers Reinforced . | . . . Active Scanning Responses . | . . . Cargo Convoy Interrupts . | . . . Stealth | -11 -10 -9 --------- Run | Yrd Mat Mat Distress Signals 1 | . 1 . Communications Jammed . | . . . Distress Signals . | . . . Times Spotted 23 | . 9 14 Peak Tracking Total 7 | . 5 7 Tactical Retreats 1 | . . 1 Traps | -11 -10 -9 ------- Run | Yrd Mat Mat Traps Triggered 2 | . 2 . Indirectly . | . . . Trap Hack Attempts . | . . . Triggered . | . . . Disarmed . | . . . Reprogrammed . | . . . Reused . | . . . Traps Extracted . | . . . Installed . | . . . Triggered . | . . . Machines | -11 -10 -9 ---------- Run | Yrd Mat Mat Machines Disabled . | . . . Max in Single Turn . | . . . Machines Repaired . | . . . Machines Dismantled . | . . . Machines Sabotaged . | . . . Overloaded Fab Kills . | . . . Hacking | -11 -10 -9 --------- Run | Yrd Mat Mat Machines Accessed 3 | . 2 1 Terminals 2 | . 1 1 Fabricators . | . . . Repair Stations . | . . . Recycling Units 1 | . 1 . Scanalyzers . | . . . Garrison Access . | . . . Total Hacks 6 | . 3 3 Successful 3 | . 1 2 Failed 3 | . 2 1 Catastrophic 2 | . 1 1 Database Lockouts . | . . . Manual 5 | . 2 3 Terminals 5 | . 2 3 Fabricators . | . . . Repair Stations . | . . . Recycling Units 1 | . 1 . Scanalyzers . | . . . Garrison Access . | . . . Terminal Hacks 2 | . . 2 Locate Traps 1 | . . 1 Zone Layout 1 | . . 1 Fabricator Hacks . | . . . Repair Station Hacks . | . . . Recycling Unit Hacks 1 | . 1 . Report Inventory 1 | . 1 . Scanalyzer . | . . . Garrison Access Hacks . | . . . Unauthorized Hacks . | . . . Terminals . | . . . Fabricators . | . . . Repair Stations . | . . . Recycling Units . | . . . Scanalyzers . | . . . Garrison Access . | . . . Data Cores Recovered . | . . . Used . | . . . Hacking Detections 2 | . 1 1 Full Trace Events 1 | . . 1 Feedback Events . | . . . Feedback Blocked . | . . . Robot Schematics Acquired . | . . . Robots Built . | . . . Authchips . | . . . Time . | . . . Total Robot Build Rating . | . . . Part Schematics Acquired . | . . . Parts Built . | . . . Authchips . | . . . Time . | . . . Total Part Build Rating . | . . . Part Studies Acquired . | . . . Parts Repaired . | . . . Time . | . . . Parts Recycled . | . . . Recycled Matter . | . . . Retrieved Matter . | . . . Retrieved Components . | . . . Parts Scanalyzed . | . . . Part Schematics Acquired . | . . . Parts Damaged . | . . . Bothacking | -11 -10 -9 ------------ Run | Yrd Mat Mat Used RIF Installer . | . . . Robots Hacked . | . . . Non-combat . | . . . Combat . | . . . Robot Hacks Applied . | . . . Relay Couplers Released . | . . . Fabnet Peak Effective % . | . . . Robots Rewired . | . . . Allies Hacked . | . . . Hacks Repelled . | . . . Allies | -11 -10 -9 -------- Run | Yrd Mat Mat Total Allies . | . . . Largest Group . | . . . Highest-Rated Group . | . . . Highest-Rated Ally . | . . . Total Orders . | . . . Ally Attacks . | . . . Total Damage . | . . . Kills . | . . . Allies Corrupted . | . . . Allies Melted . | . . . Intel | -11 -10 -9 ------- Run | Yrd Mat Mat Active Infowar (turns) . | . . . Robot Analysis Total . | . . . Derelict Logs Recovered . | . . . Drone Launches . | . . . Drone Recoveries . | . . . Exploration | -11 -10 -9 ------------- Run | Yrd Mat Mat Turns Passed 719 | 82 241 396 Spaces Moved 268 | 58 112 98 Core 8 | 3 4 1 Treads . | . . . Legs 258 | 55 108 95 Wheels 2 | . . 2 Hover . | . . . Flight . | . . . Fastest Speed 50 | 50 100 175 Average Speed 219 | 117 169 336 Slowest Speed 1400 | 120 400 1400 Overloaded Moves . | . . . Propulsion Burnouts . | . . . Robots Hopped . | . . . Potential Cave-ins . | . . . Cave-ins Triggered . | . . . Exploration Rate (%) 13 | 4 23 12 Regions Visited 2 Branch Regions . Pre-discovered Areas . | . . . Known Exits Taken . | . . . Unknown Exits Taken 2 | 1 1 . Scrap Searched . | . . . Spaces Dug . | . . . Terrain Destroyed . | . . . Melee . | . . . Projectile . | . . . AOE . | . . . Terrain Rammed . | . . . Walls Destroyed . | . . . Machines Disabled . | . . . Actions | -11 -10 -9 --------- Run | Yrd Mat Mat Total 331 | 69 134 128 Wait . | . . . Move 266 | 57 111 98 Hop . | . . . Pick Up 7 | 6 1 . Fast Attach 13 | 6 6 1 Attach 6 | . 1 5 Detach . | . . . Swap 2 | . 1 1 Drop . | . . . Fire 37 | . 14 23 Melee . | . . . Ram . | . . . Kick . | . . . Crush . | . . . Escape Stasis . | . . . Rewire . | . . . Trap . | . . . Miscellaneous . | . . . Route ------- -11/Scrapyard -10/Materials (discovered 2 exits: *Mat / [*Min]) -9/Materials History --------- Turn | Location | Event 4 | -11/Scrapyard | Discovered new exit (range 16) 83 | -11/Scrapyard | Entered Materials 198 | -10/Materials | Discovered new exit (range 14) 202 | -10/Materials | Discovered new exit (range 14) 313 | -10/Materials | Build established: Mutant 324 | -10/Materials | Entered another Materials area 324 | -9/Materials | Evolved 2 slots: Propulsion x2 704 | -9/Materials | Core integrity fell below 50% 718 | -9/Materials | Core integrity fell below 20% 720 | -9/Materials | Destroyed by Y-45 Defender with Beam Rifle Last Messages --------------- 00653_ Aluminum Leg destroyed. 00670_ Lgt. Ion Engine destroyed. 00672_ G-34 Mercenary destroyed. 00673_ Assault Rifle destroyed. 00680_ Material Compactor disabled. 00681_ Critical hit (Burn: +37). 00681_ Y-45 Defender destroyed. 00687_ Lgt. Treads destroyed. 00690_ Aluminum Leg destroyed. 00697_ Acquired 30 matter. 00702_ Com. Wheel destroyed. 00705_ Sml. Storage Unit destroyed. 00705_ Aluminum Leg melted. 00705_ Imp. Heat Sink melted. 00705_ Lgt. Nuclear Core melted. 00705_ Aluminum Leg melted. 00705_ G-47 Trooper destroyed. 00706_ Acquired 10 matter. 00708_ Lgt. Treads destroyed. 00711_ Sml. Laser destroyed. Map ----- +----------------------------------------------------+ | | | | | | | | | | | | | | | | | | | | | ???????????????#########?????????????????????????? | | ???????????????# #?????????????????????????? | | ????????###????# #?????????????????????????? | | ????????# ###?# """"" #?????????????????????????? | | ????????# ## """"" #?????????????????????????? | | ????????# ## """"" ########??????????????????? | | ????????# ## ^ # #??????????????????? | | ?????????# #######+## #??????????????????? | | ??????????# + """ #??????????????????? | | ????#####?## # ## """ #??????????????????? | | ????# #??####" ## """ #??????????????????? | | ##### #?????#T T# !#??????????????????? | | # #?????#" #####+####### #???????????? | | # #?????# [=!= #???????????? | | # #?????#! !*!=[ #???????????? | | + #?????###########@####/####+##???????????? | | # ######???????# !%Y[ #?????????????????? | | # # #???????# gY #?????????????????? | | # # #???????# g g #?????????????????? | | # # ######### """"" #?????????????????? | | ##### # + + """""Y #?????????????????? | | ????# # # ####### """"" #?????????????????? | | ????# # # #?????# """ #?????????????????? | | ##### ###### #?????# #?????????????????? | | ##????######## ##?????????????????? | | #???????????###??????????????????? | | #????????????????????????????????? | | #????????????????????????????????? | | #????????????????????????????????? | | #### """ """ #????????????????????????????????? | | ???# """ """ #????????????????????????????????? | | ???# """ """ #????????????????????????????????? | | ???# #????????????????????????????????? | | ???# +????????????????????????????????? | | ???# """ """ #????????????????????????????????? | | ???# """ """ #????????????????????????????????? | | ???# ??" "?? #????????????????????????????????? | | ???# ??? ?? #????????????????????????????????? | | ???????? ?? #????????????????????????????????? | | ????????? ???? ?????????????????????????????????? | +----------------------------------------------------+ Best States ------------- Heat Dissipation 28 Energy Generation 10 Energy Capacity 125 Matter Stores 300 Matter Capacity 300 Sight Range 16 Terrain Scan Density 10 Evasion (%) 55 Item Schematics ----------------- None Robot Schematics ------------------ None Fabricated ------------ Nothing Repaired ---------- Nothing Studied --------- None Alien Tech Used ----------------- None Achievements -------------- None Challenges ------------ None Game ------ Seed ProtonBladeInterrupter Manual? 0 Play Time 00:06:20 Cumulative 19.5 hours Start 2026.03.22 @ 22:27:38 End 2026.03.23 @ 00:39:53 Sessions 2 Manual Loads 0 Difficulty Rogue Special Mode None Game No. 26 Rogue 26 Adventurer 0 Explorer 0 Win Type - Total 0 Types 0/0/0/0/0/0/0/0/0/0 Lore% 12 Gallery% 19 Achievement% 14 Wizard Run 0 Options --------- Layout 1 ASCII 0 Keyboard 0 Movement Mouse Keybinds 0 Fullscreen 0 Font 28/SmallcapsGlow Map View 50x35 Zoom Use 0% Tactical HUD 1 Map Filters NONE Filters NONE Steam 1 RUN: e3570994-1aff-44bf-8a53-15a620a0d817